[Event "Latvijas 2022. gada jauniešu čempionāta fināls"]
[Site "Riga, Latvia"]
[Date "2022.06.15"]
[Round "6.2"]
[White "Sokolovskis, Pavels"]
[Black "Freibergs, Andrejs"]
[Result "1-0"]
[TimeControl "3600+30"]
[WhiteElo "1572"]
[BlackElo "1526"]

1. d4 {[%clk 01:00:59]} d5 {[%clk 01:00:41]} {[%emt 00:00:20]} 2. Bf4 {[%clk
01:00:51]} {[%emt 00:00:37]} c5 {[%clk 01:01:05]} {[%emt 00:00:06]} 3. c3
{[%clk 01:00:22]} {[%emt 00:00:59]} cxd4 {[%clk 01:00:59]} {[%emt 00:00:36]} 4.
cxd4 {[%clk 01:00:36]} {[%emt 00:00:16]} Nc6 {[%clk 01:01:22]} {[%emt
00:00:07]} 5. e3 {[%clk 01:00:11]} {[%emt 00:00:55]} Bf5 {[%clk 01:00:18]}
{[%emt 00:01:33]} 6. Nc3 {[%clk 00:59:09]} {[%emt 00:01:33]} Nf6 {[%clk
00:58:33]} {[%emt 00:02:15]} 7. Qb3 {[%clk 00:57:17]} {[%emt 00:02:22]} Qd7
{[%clk 00:56:39]} {[%emt 00:02:24]} 8. Nf3 {[%clk 00:55:49]} {[%emt 00:01:58]}
e6 {[%clk 00:54:22]} {[%emt 00:02:47]} 9. Bb5 {[%clk 00:54:27]} {[%emt
00:01:53]} Bd6 {[%clk 00:51:23]} {[%emt 00:03:28]} 10. Ne5 {[%clk 00:51:26]}
{[%emt 00:03:31]} Bxe5 {[%clk 00:51:13]} {[%emt 00:00:40]} 11. Bxe5 {[%clk
00:51:20]} {[%emt 00:00:37]} O-O {[%clk 00:50:01]} {[%emt 00:01:41]} 12. O-O
{[%clk 00:47:35]} {[%emt 00:04:15]} Rfc8 {[%clk 00:48:07]} {[%emt 00:02:24]} 13.
Rac1 {[%clk 00:36:35]} {[%emt 00:11:30]} a6 {[%clk 00:46:46]} {[%emt 00:01:52]}
14. Bxc6 {[%clk 00:35:11]} {[%emt 00:01:53]} Rxc6 {[%clk 00:46:23]} {[%emt
00:00:54]} 15. Bxf6 {[%clk 00:32:51]} {[%emt 00:02:49]} gxf6 {[%clk 00:46:32]}
{[%emt 00:00:21]} 16. Na4 {[%clk 00:28:36]} {[%emt 00:04:45]} Rb8 {[%clk
00:38:11]} {[%emt 00:08:52]} 17. Nc5 {[%clk 00:26:20]} {[%emt 00:02:45]} Qc8
{[%clk 00:38:09]} {[%emt 00:00:32]} 18. Qa3 {[%clk 00:21:41]} {[%emt 00:05:10]}
b6 {[%clk 00:32:45]} {[%emt 00:05:54]} 19. Nb3 {[%clk 00:22:01]} {[%emt
00:00:09]} Bc2 {[%clk 00:32:49]} {[%emt 00:00:27]} 20. Nd2 {[%clk 00:13:28]}
{[%emt 00:09:03]} a5 {[%clk 00:24:18]} {[%emt 00:09:01]} 21. e4 {[%clk
00:08:49]} {[%emt 00:05:08]} dxe4 {[%clk 00:18:15]} {[%emt 00:06:33]} 22. Qg3+
{[%clk 00:08:54]} {[%emt 00:00:24]} Kh8 {[%clk 00:17:24]} {[%emt 00:01:22]} 23.
Qf4 {[%clk 00:08:11]} {[%emt 00:01:13]} e5 {[%clk 00:16:13]} {[%emt 00:01:42]}
24. dxe5 {[%clk 00:07:55]} {[%emt 00:00:45]} fxe5 {[%clk 00:14:52]} {[%emt
00:01:51]} 25. Qxe5+ {[%clk 00:08:13]} {[%emt 00:00:13]} f6 {[%clk 00:15:10]}
{[%emt 00:00:11]} 26. Qf4 {[%clk 00:07:54]} {[%emt 00:00:48]} Rb7 {[%clk
00:14:51]} {[%emt 00:00:50]} 27. Nb3 {[%clk 00:07:06]} {[%emt 00:01:19]} Rd7
{[%clk 00:10:05]} {[%emt 00:05:16]} 28. h3 {[%clk 00:03:37]} {[%emt 00:03:58]}
a4 {[%clk 00:10:03]} {[%emt 00:00:33]} 29. Nd2 {[%clk 00:03:17]} {[%emt
00:00:49]} Qc7 {[%clk 00:07:28]} {[%emt 00:03:06]} 30. Qxc7 {[%clk 00:02:26]}
{[%emt 00:01:20]} Rcxc7 {[%clk 00:07:49]} {[%emt 00:00:09]} 31. Nb1 {[%clk
00:02:34]} {[%emt 00:00:21]} Bxb1 {[%clk 00:06:02]} {[%emt 00:02:18]} 32. Rxb1
{[%clk 00:03:00]} {[%emt 00:00:04]} Rc2 {[%clk 00:06:30]} {[%emt 00:00:03]} 33.
Rfc1 {[%clk 00:03:04]} {[%emt 00:00:26]} Rdd2 {[%clk 00:06:53]} {[%emt
00:00:06]} 34. Rxc2 {[%clk 00:03:24]} {[%emt 00:00:10]} Rxc2 {[%clk 00:07:21]}
{[%emt 00:00:02]} 35. a3 {[%clk 00:03:35]} {[%emt 00:00:19]} Kg7 {[%clk
00:07:26]} {[%emt 00:00:25]} 36. b3 {[%clk 00:03:18]} {[%emt 00:00:47]} axb3
{[%clk 00:07:15]} {[%emt 00:00:41]} 37. Rxb3 {[%clk 00:03:44]} {[%emt
00:00:04]} Rc6 {[%clk 00:07:41]} {[%emt 00:00:04]} 38. Kh2 {[%clk 00:03:53]}
{[%emt 00:00:21]} f5 {[%clk 00:07:56]} {[%emt 00:00:15]} 39. Kg3 {[%clk
00:04:05]} {[%emt 00:00:17]} Kg6 {[%clk 00:07:49]} {[%emt 00:00:37]} 40. Kf4
{[%clk 00:04:11]} {[%emt 00:00:24]} h6 {[%clk 00:07:38]} {[%emt 00:00:40]} 41.
Rb5 {[%clk 00:04:27]} {[%emt 00:00:16]} Rf6 {[%clk 00:06:44]} {[%emt 00:01:25]}
42. h4 {[%clk 00:04:43]} {[%emt 00:00:13]} Rc6 {[%clk 00:06:28]} {[%emt
00:00:46]} 43. Rxf5 {[%clk 00:04:15]} {[%emt 00:00:59]} e3 {[%clk 00:06:33]}
{[%emt 00:00:25]} 44. h5+ {[%clk 00:04:37]} {[%emt 00:00:07]} Kg7 {[%clk
00:06:57]} {[%emt 00:00:05]} 45. fxe3 {[%clk 00:04:50]} {[%emt 00:00:17]} Rc3
{[%clk 00:07:18]} {[%emt 00:00:10]} 46. Rb5 {[%clk 00:05:06]} {[%emt 00:00:14]}
Rxa3 {[%clk 00:07:38]} {[%emt 00:00:11]} 47. Rxb6 {[%clk 00:05:29]} {[%emt
00:00:07]} Ra5 {[%clk 00:07:55]} {[%emt 00:00:12]} 48. g4 {[%clk 00:05:38]}
{[%emt 00:00:20]} Rc5 {[%clk 00:08:00]} {[%emt 00:00:26]} 49. Rg6+ {[%clk
00:05:46]} {[%emt 00:00:22]} Kh7 {[%clk 00:08:25]} {[%emt 00:00:05]} 50. e4
{[%clk 00:06:05]} {[%emt 00:00:10]} Rc1 {[%clk 00:08:43]} {[%emt 00:00:13]} 51.
Ke5 {[%clk 00:06:15]} {[%emt 00:00:17]} Re1 {[%clk 00:09:03]} {[%emt 00:00:13]}
52. Kd5 {[%clk 00:06:26]} {[%emt 00:00:19]} Rd1+ {[%clk 00:09:13]} {[%emt
00:00:20]} 53. Ke6 {[%clk 00:06:48]} {[%emt 00:00:08]} Re1 {[%clk 00:09:08]}
{[%emt 00:00:35]} 54. e5 {[%clk 00:07:11]} {[%emt 00:00:07]} Rd1 {[%clk
00:09:24]} {[%emt 00:00:14]} 55. Ke7 {[%clk 00:06:24]} {[%emt 00:01:16]} Re1
{[%clk 00:09:13]} {[%emt 00:00:42]} 56. e6 {[%clk 00:06:49]} {[%emt 00:00:06]}
Rd1 {[%clk 00:09:41]} {[%emt 00:00:02]} 57. Kf7 {[%clk 00:06:38]} {[%emt
00:00:40]} Rf1+ {[%clk 00:09:14]} {[%emt 00:00:57]} 58. Rf6 {[%clk 00:06:31]}
{[%emt 00:00:36]} 1-0

[Event "Latvijas 2022. gada jauniešu čempionāta fināls"]
[Site "Riga, Latvia"]
[Date "2022.06.15"]
[Round "6.3"]
[White "Bogdanovics, Kirills"]
[Black "Sestakovs, Maksims"]
[Result "1-0"]
[TimeControl "3600+30"]
[WhiteElo "1785"]
[BlackElo "1138"]

1. d4 {[%clk 01:00:59]} e6 {[%clk 01:00:54]} {[%emt 00:00:06]} 2. c4 {[%clk
01:01:22]} {[%emt 00:00:08]} b6 {[%clk 01:01:18]} {[%emt 00:00:06]} 3. e4
{[%clk 01:01:36]} {[%emt 00:00:15]} Bb7 {[%clk 01:01:40]} {[%emt 00:00:08]} 4.
Nc3 {[%clk 01:01:43]} {[%emt 00:00:23]} c5 {[%clk 01:01:28]} {[%emt 00:00:42]}
5. d5 {[%clk 01:02:06]} {[%emt 00:00:08]} exd5 {[%clk 01:01:13]} {[%emt
00:00:43]} 6. cxd5 {[%clk 01:02:11]} {[%emt 00:00:25]} d6 {[%clk 01:01:30]}
{[%emt 00:00:14]} 7. f4 {[%clk 01:02:05]} {[%emt 00:00:37]} g6 {[%clk
01:01:33]} {[%emt 00:00:26]} 8. Nf3 {[%clk 01:02:19]} {[%emt 00:00:16]} Bg7
{[%clk 01:01:41]} {[%emt 00:00:22]} 9. Bc4 {[%clk 01:01:06]} {[%emt 00:01:43]}
Nd7 {[%clk 01:01:37]} {[%emt 00:00:35]} 10. O-O {[%clk 01:00:27]} {[%emt
00:01:08]} Ne7 {[%clk 01:01:46]} {[%emt 00:00:21]} 11. Qc2 {[%clk 00:49:26]}
{[%emt 00:11:31]} a6 {[%clk 01:01:28]} {[%emt 00:00:49]} 12. a4 {[%clk
00:49:51]} {[%emt 00:00:04]} O-O {[%clk 01:01:43]} {[%emt 00:00:15]} 13. Bd2
{[%clk 00:46:52]} {[%emt 00:03:28]} f5 {[%clk 01:00:47]} {[%emt 00:01:27]} 14.
Ng5 {[%clk 00:46:17]} {[%emt 00:01:06]} Qc8 {[%clk 01:00:21]} {[%emt 00:00:55]}
15. Ne6 {[%clk 00:46:27]} {[%emt 00:00:20]} Bd4+ {[%clk 00:59:12]} {[%emt
00:01:39]} 16. Kh1 {[%clk 00:46:28]} {[%emt 00:00:29]} Re8 {[%clk 00:58:30]}
{[%emt 00:01:12]} 17. Ne2 {[%clk 00:43:58]} {[%emt 00:03:01]} fxe4 {[%clk
00:56:35]} {[%emt 00:02:22]} 18. Qxe4 {[%clk 00:42:29]} {[%emt 00:02:01]} Nf6
{[%clk 00:55:10]} {[%emt 00:01:54]} 19. Qd3 {[%clk 00:42:55]} {[%emt 00:00:04]}
Bxb2 {[%clk 00:53:55]} {[%emt 00:01:46]} 20. Rab1 {[%clk 00:42:56]} {[%emt
00:00:29]} Bxd5 {[%clk 00:53:28]} {[%emt 00:00:57]} 21. Bxd5 {[%clk 00:42:27]}
{[%emt 00:00:59]} Nexd5 {[%clk 00:53:22]} {[%emt 00:00:34]} 22. Ng5 {[%clk
00:41:53]} {[%emt 00:01:06]} Qg4 {[%clk 00:51:15]} {[%emt 00:02:37]} 23. Rfe1
{[%clk 00:41:19]} {[%emt 00:01:04]} Bd4 {[%clk 00:44:52]} {[%emt 00:06:53]} 24.
Nxd4 {[%clk 00:41:29]} {[%emt 00:00:20]} cxd4 {[%clk 00:38:54]} {[%emt
00:06:25]} 25. Qxd4 {[%clk 00:41:48]} {[%emt 00:00:14]} Re2 {[%clk 00:37:13]}
{[%emt 00:02:10]} 26. Rxe2 {[%clk 00:39:58]} {[%emt 00:02:21]} Qxe2 {[%clk
00:37:10]} {[%emt 00:00:31]} 27. Re1 {[%clk 00:40:13]} {[%emt 00:00:17]} Qg4
{[%clk 00:35:30]} {[%emt 00:02:10]} 28. Qc4 {[%clk 00:36:35]} {[%emt 00:04:08]}
Qf5 {[%clk 00:32:25]} {[%emt 00:03:34]} 29. Ne4 {[%clk 00:35:15]} {[%emt
00:01:51]} Nxe4 {[%clk 00:31:30]} {[%emt 00:01:24]} 30. Rxe4 {[%clk 00:33:38]}
{[%emt 00:02:08]} Kf8 {[%clk 00:29:25]} {[%emt 00:02:34]} 31. g4 {[%clk
00:31:41]} {[%emt 00:02:28]} Qf7 {[%clk 00:24:36]} {[%emt 00:05:18]} 32. Qc6
{[%clk 00:23:42]} {[%emt 00:08:31]} Rd8 {[%clk 00:22:56]} {[%emt 00:02:09]} 33.
Rd4 {[%clk 00:23:52]} {[%emt 00:00:18]} Nf6 {[%clk 00:21:51]} {[%emt 00:01:37]}
34. Rxd6 {[%clk 00:23:30]} {[%emt 00:00:53]} Rxd6 {[%clk 00:21:37]} {[%emt
00:00:41]} 35. Qxd6+ {[%clk 00:23:54]} {[%emt 00:00:08]} Qe7 {[%clk 00:21:16]}
{[%emt 00:00:50]} 36. Qxb6 {[%clk 00:22:00]} {[%emt 00:02:25]} Qe4+ {[%clk
00:16:15]} {[%emt 00:05:29]} 37. Kg1 {[%clk 00:22:28]} {[%emt 00:00:04]} Nd5
{[%clk 00:13:50]} {[%emt 00:02:54]} 38. Qb8+ {[%clk 00:20:07]} {[%emt
00:02:52]} Kf7 {[%clk 00:13:41]} {[%emt 00:00:39]} 39. Qe5 {[%clk 00:18:04]}
{[%emt 00:02:33]} Qxe5 {[%clk 00:13:15]} {[%emt 00:00:53]} 40. fxe5 {[%clk
00:18:28]} {[%emt 00:00:09]} Ke6 {[%clk 00:13:35]} {[%emt 00:00:10]} 41. Kf2
{[%clk 00:18:46]} {[%emt 00:00:11]} Kxe5 {[%clk 00:13:24]} {[%emt 00:00:41]} 42.
Kf3 {[%clk 00:18:10]} {[%emt 00:01:07]} Nf6 {[%clk 00:12:56]} {[%emt 00:00:57]}
43. Bc3+ {[%clk 00:13:35]} {[%emt 00:05:06]} Ke6 {[%clk 00:13:23]} {[%emt
00:00:03]} 44. Bxf6 {[%clk 00:13:48]} {[%emt 00:00:17]} Kxf6 {[%clk 00:13:41]}
{[%emt 00:00:11]} 45. Kf4 {[%clk 00:14:12]} {[%emt 00:00:07]} g5+ {[%clk
00:13:38]} {[%emt 00:00:33]} 46. Ke4 {[%clk 00:14:29]} {[%emt 00:00:12]} Ke6
{[%clk 00:13:51]} {[%emt 00:00:17]} 47. a5 {[%clk 00:14:24]} {[%emt 00:00:36]}
h6 {[%clk 00:13:30]} {[%emt 00:00:51]} 48. h3 {[%clk 00:14:52]} {[%emt
00:00:02]} Ke7 {[%clk 00:11:46]} {[%emt 00:02:13]} 49. Ke5 {[%clk 00:15:11]}
{[%emt 00:00:13]} Kd7 {[%clk 00:11:25]} {[%emt 00:00:50]} 50. Kf6 {[%clk
00:15:21]} {[%emt 00:00:20]} Kc6 {[%clk 00:11:49]} {[%emt 00:00:06]} 51. Kg6
{[%clk 00:15:44]} {[%emt 00:00:07]} Kb5 {[%clk 00:12:15]} {[%emt 00:00:05]} 52.
Kxh6 {[%clk 00:16:05]} {[%emt 00:00:09]} Kxa5 {[%clk 00:12:37]} {[%emt
00:00:08]} 53. Kxg5 {[%clk 00:16:27]} {[%emt 00:00:06]} Kb4 {[%clk 00:13:04]}
{[%emt 00:00:03]} 54. h4 {[%clk 00:16:48]} {[%emt 00:00:10]} a5 {[%clk
00:13:27]} {[%emt 00:00:08]} 55. h5 {[%clk 00:17:14]} {[%emt 00:00:03]} a4
{[%clk 00:13:37]} {[%emt 00:00:21]} 56. h6 {[%clk 00:17:41]} {[%emt 00:00:02]}
a3 {[%clk 00:14:01]} {[%emt 00:00:07]} 57. h7 {[%clk 00:18:06]} {[%emt
00:00:04]} a2 {[%clk 00:14:20]} {[%emt 00:00:11]} 58. h8=Q {[%clk 00:18:29]}
{[%emt 00:00:06]} Ka3 {[%clk 00:14:19]} {[%emt 00:00:32]} 59. Kf4 {[%clk
00:18:47]} {[%emt 00:00:12]} Kb3 {[%clk 00:14:29]} {[%emt 00:00:20]} 60. Ke3
{[%clk 00:19:08]} {[%emt 00:00:09]} Kc2 {[%clk 00:14:35]} {[%emt 00:00:24]} 61.
Qa1 {[%clk 00:19:19]} {[%emt 00:00:18]} Kb3 {[%clk 00:14:49]} {[%emt 00:00:16]}
62. Kd4 {[%clk 00:19:16]} {[%emt 00:00:34]} Kc2 {[%clk 00:14:31]} {[%emt
00:00:48]} 63. Qxa2+ {[%clk 00:19:35]} {[%emt 00:00:11]} Kc1 {[%clk 00:14:30]}
{[%emt 00:00:31]} 64. Kd3 {[%clk 00:19:59]} {[%emt 00:00:06]} Kd1 {[%clk
00:14:24]} {[%emt 00:00:36]} 65. Qb1# {[%clk 00:20:23]} {[%emt 00:00:06]} 1-0

[Event "Latvijas 2022. gada jauniešu čempionāta fināls"]
[Site "Riga, Latvia"]
[Date "2022.06.15"]
[Round "6.5"]
[White "Andrusevics, Jegors"]
[Black "Kalinin, Oleg"]
[Result "1-0"]
[TimeControl "3600+30"]
[WhiteElo "1569"]
[BlackElo "1164"]

1. d4 {[%clk 01:00:01]} {[%emt 00:00:58]} Nf6 {[%clk 01:00:55]} {[%emt
00:00:06]} 2. Nf3 {[%clk 00:59:35]} {[%emt 00:00:55]} d5 {[%clk 01:01:19]}
{[%emt 00:00:07]} 3. Bf4 {[%clk 00:59:33]} {[%emt 00:00:32]} e6 {[%clk
01:01:45]} {[%emt 00:00:05]} 4. e3 {[%clk 00:59:36]} {[%emt 00:00:26]} c5
{[%clk 01:01:54]} {[%emt 00:00:22]} 5. c3 {[%clk 00:59:06]} {[%emt 00:01:00]}
Nc6 {[%clk 01:02:21]} {[%emt 00:00:03]} 6. Nbd2 {[%clk 00:58:59]} {[%emt
00:00:36]} Bd6 {[%clk 01:02:44]} {[%emt 00:00:07]} 7. Bg3 {[%clk 00:59:05]}
{[%emt 00:00:23]} O-O {[%clk 01:03:05]} {[%emt 00:00:10]} 8. Bd3 {[%clk
00:59:11]} {[%emt 00:00:23]} Qe7 {[%clk 01:02:54]} {[%emt 00:00:42]} 9. Ne5
{[%clk 00:58:26]} {[%emt 00:01:15]} Nd7 {[%clk 01:02:58]} {[%emt 00:00:27]} 10.
f4 {[%clk 00:57:26]} {[%emt 00:01:29]} f6 {[%clk 01:02:51]} {[%emt 00:00:37]}
11. Nxd7 {[%clk 00:54:49]} {[%emt 00:03:07]} Bxd7 {[%clk 01:01:54]} {[%emt
00:01:28]} 12. O-O {[%clk 00:53:39]} {[%emt 00:01:40]} f5 {[%clk 01:02:01]}
{[%emt 00:00:22]} 13. Nf3 {[%clk 00:53:39]} {[%emt 00:00:30]} a6 {[%clk
00:56:34]} {[%emt 00:05:58]} 14. a4 {[%clk 00:52:31]} {[%emt 00:01:38]} Be8
{[%clk 00:42:56]} {[%emt 00:14:05]} 15. Bh4 {[%clk 00:50:43]} {[%emt 00:02:19]}
Qd7 {[%clk 00:38:24]} {[%emt 00:04:50]} 16. Ne5 {[%clk 00:48:53]} {[%emt
00:02:34]} Nxe5 {[%clk 00:36:55]} {[%emt 00:01:58]} 17. fxe5 {[%clk 00:48:24]}
{[%emt 00:00:58]} Be7 {[%clk 00:37:00]} {[%emt 00:00:15]} 18. Bxe7 {[%clk
00:46:05]} {[%emt 00:03:00]} Qxe7 {[%clk 00:37:27]} {[%emt 00:00:03]} 19. Qf3
{[%clk 00:44:44]} {[%emt 00:01:50]} c4 {[%clk 00:30:14]} {[%emt 00:07:44]} 20.
Bc2 {[%clk 00:44:19]} {[%emt 00:00:55]} Qg5 {[%clk 00:29:36]} {[%emt 00:01:03]}
21. Bd1 {[%clk 00:42:00]} {[%emt 00:02:53]} Bg6 {[%clk 00:25:07]} {[%emt
00:05:01]} 22. g3 {[%clk 00:40:35]} {[%emt 00:01:54]} b5 {[%clk 00:18:53]}
{[%emt 00:06:43]} 23. h4 {[%clk 00:37:56]} {[%emt 00:03:09]} Qe7 {[%clk
00:18:16]} {[%emt 00:01:05]} 24. Bc2 {[%clk 00:37:17]} {[%emt 00:01:12]} b4
{[%clk 00:16:29]} {[%emt 00:02:17]} 25. h5 {[%clk 00:37:17]} {[%emt 00:00:30]}
Bf7 {[%clk 00:16:27]} {[%emt 00:00:31]} 26. Rf2 {[%clk 00:34:40]} {[%emt
00:03:08]} b3 {[%clk 00:15:26]} {[%emt 00:01:30]} 27. Bd1 {[%clk 00:33:06]}
{[%emt 00:02:04]} Qg5 {[%clk 00:14:37]} {[%emt 00:01:19]} 28. Be2 {[%clk
00:32:12]} {[%emt 00:01:25]} g6 {[%clk 00:12:47]} {[%emt 00:02:20]} 29. Rh2
{[%clk 00:30:53]} {[%emt 00:01:49]} gxh5 {[%clk 00:10:34]} {[%emt 00:02:43]} 30.
Kf2 {[%clk 00:29:23]} {[%emt 00:02:00]} Bg6 {[%clk 00:06:38]} {[%emt 00:04:26]}
31. Rah1 {[%clk 00:28:34]} {[%emt 00:01:18]} Qg4 {[%clk 00:01:44]} {[%emt
00:05:26]} 32. Rh4 {[%clk 00:24:09]} {[%emt 00:04:55]} Qxf3+ {[%clk 00:01:42]}
{[%emt 00:00:31]} 33. Bxf3 {[%clk 00:24:19]} {[%emt 00:00:20]} Rab8 {[%clk
00:01:15]} {[%emt 00:00:57]} 34. Bxh5 {[%clk 00:24:08]} {[%emt 00:00:40]} Bxh5
{[%clk 00:01:35]} {[%emt 00:00:11]} 35. Rxh5 {[%clk 00:24:32]} {[%emt
00:00:06]} Rf7 {[%clk 00:01:34]} {[%emt 00:00:31]} 36. Kf3 {[%clk 00:24:49]}
{[%emt 00:00:12]} Rg7 {[%clk 00:01:22]} {[%emt 00:00:42]} 37. Rh6 {[%clk
00:24:51]} {[%emt 00:00:29]} Re8 {[%clk 00:01:30]} {[%emt 00:00:22]} 38. Rf6
{[%clk 00:24:27]} {[%emt 00:00:54]} Rg6 {[%clk 00:01:35]} {[%emt 00:00:25]} 39.
Rxg6+ {[%clk 00:22:29]} {[%emt 00:02:28]} hxg6 {[%clk 00:02:04]} 40. Kf4 {[%clk
00:22:50]} {[%emt 00:00:10]} Kg7 {[%clk 00:01:00]} {[%emt 00:01:34]} 41. Kg5
{[%clk 00:23:00]} {[%emt 00:00:20]} Rg8 {[%clk 00:00:59]} {[%emt 00:00:31]} 42.
Rh6 {[%clk 00:23:20]} {[%emt 00:00:11]} Kf7 {[%clk 00:01:21]} {[%emt 00:00:07]}
43. Rh7+ {[%clk 00:23:19]} {[%emt 00:00:31]} Rg7 {[%clk 00:01:41]} {[%emt
00:00:10]} 44. Rxg7+ {[%clk 00:23:36]} {[%emt 00:00:13]} Kxg7 {[%clk 00:01:57]}
{[%emt 00:00:15]} 45. a5 {[%clk 00:24:05]} {[%emt 00:00:01]} Kf7 {[%clk
00:00:59]} {[%emt 00:01:28]} 46. Kh6 {[%clk 00:24:16]} {[%emt 00:00:18]} g5
{[%clk 00:01:24]} {[%emt 00:00:05]} 47. Kh7 {[%clk 00:24:31]} {[%emt 00:00:15]}
Ke7 {[%clk 00:01:06]} {[%emt 00:00:48]} 48. Kg7 {[%clk 00:24:12]} {[%emt
00:00:49]} Kd7 {[%clk 00:01:02]} {[%emt 00:00:34]} 49. Kf6 {[%clk 00:24:22]}
{[%emt 00:00:21]} g4 {[%clk 00:01:11]} {[%emt 00:00:20]} 50. Kf7 {[%clk
00:24:47]} {[%emt 00:00:05]} f4 {[%clk 00:01:16]} {[%emt 00:00:25]} 51. exf4
{[%clk 00:25:11]} {[%emt 00:00:05]} Kc6 {[%clk 00:00:51]} {[%emt 00:00:56]} 52.
Kxe6 {[%clk 00:25:34]} {[%emt 00:00:08]} Kb5 {[%clk 00:01:16]} {[%emt
00:00:04]} 53. Kxd5 {[%clk 00:25:55]} {[%emt 00:00:09]} Kxa5 {[%clk 00:01:41]}
{[%emt 00:00:06]} 54. e6 {[%clk 00:26:12]} {[%emt 00:00:12]} 1-0

[Event "Latvijas 2022. gada jauniešu čempionāta fināls"]
[Site "Riga, Latvia"]
[Date "2022.06.15"]
[Round "6.6"]
[White "Merzlovs, Timurs"]
[Black "Aleksejevs, Daniils"]
[Result "0-1"]
[TimeControl "3600+30"]
[WhiteElo "1152"]
[BlackElo "1197"]

1. e4 {[%clk 01:00:53]} {[%emt 00:00:06]} c5 {[%clk 01:00:39]} {[%emt
00:00:20]} 2. f4 {[%clk 01:01:17]} {[%emt 00:00:08]} e6 {[%clk 01:01:03]}
{[%emt 00:00:06]} 3. Nf3 {[%clk 01:01:21]} {[%emt 00:00:25]} a6 {[%clk
01:01:04]} {[%emt 00:00:30]} 4. d3 {[%clk 01:01:15]} {[%emt 00:00:36]} d6
{[%clk 01:00:20]} {[%emt 00:01:14]} 5. Be2 {[%clk 01:01:22]} {[%emt 00:00:22]}
Be7 {[%clk 01:00:34]} {[%emt 00:00:17]} 6. O-O {[%clk 01:01:18]} {[%emt
00:00:34]} Nf6 {[%clk 01:00:47]} {[%emt 00:00:17]} 7. Nbd2 {[%clk 01:00:06]}
{[%emt 00:01:41]} b5 {[%clk 01:00:11]} {[%emt 00:01:07]} 8. e5 {[%clk
00:59:34]} {[%emt 00:01:02]} Nd5 {[%clk 00:59:39]} {[%emt 00:01:02]} 9. Ne4
{[%clk 00:59:44]} {[%emt 00:00:20]} Bb7 {[%clk 00:59:19]} {[%emt 00:00:50]} 10.
b3 {[%clk 00:54:00]} {[%emt 00:06:14]} O-O {[%clk 00:59:02]} {[%emt 00:00:46]}
11. Qd2 {[%clk 00:53:47]} {[%emt 00:00:44]} Qc7 {[%clk 00:55:47]} {[%emt
00:03:44]} 12. Bb2 {[%clk 00:53:42]} {[%emt 00:00:35]} Nd7 {[%clk 00:55:16]}
{[%emt 00:01:02]} 13. Kh1 {[%clk 00:49:57]} {[%emt 00:04:15]} Rac8 {[%clk
00:53:45]} {[%emt 00:02:00]} 14. a3 {[%clk 00:47:22]} {[%emt 00:03:06]} dxe5
{[%clk 00:50:10]} {[%emt 00:04:04]} 15. Nxe5 {[%clk 00:46:52]} {[%emt
00:01:01]} Rfd8 {[%clk 00:48:16]} {[%emt 00:02:24]} 16. Rf3 {[%clk 00:45:02]}
{[%emt 00:02:20]} N7f6 {[%clk 00:45:54]} {[%emt 00:02:51]} 17. Nxf6+ {[%clk
00:42:46]} {[%emt 00:02:46]} Bxf6 {[%clk 00:44:33]} {[%emt 00:01:52]} 18. Rff1
{[%clk 00:41:33]} {[%emt 00:01:43]} Ne7 {[%clk 00:33:40]} {[%emt 00:11:23]} 19.
Qe3 {[%clk 00:39:46]} {[%emt 00:02:17]} Nf5 {[%clk 00:31:58]} {[%emt 00:02:11]}
20. Qf2 {[%clk 00:39:08]} {[%emt 00:01:06]} Qe7 {[%clk 00:26:25]} {[%emt
00:06:05]} 21. Bf3 {[%clk 00:38:13]} {[%emt 00:01:26]} Bh4 {[%clk 00:17:47]}
{[%emt 00:09:08]} 22. g3 {[%clk 00:37:24]} {[%emt 00:01:20]} Bf6 {[%clk
00:17:01]} {[%emt 00:01:15]} 23. Bxb7 {[%clk 00:37:30]} {[%emt 00:00:24]} Qxb7+
{[%clk 00:16:39]} {[%emt 00:00:52]} 24. Qf3 {[%clk 00:37:26]} {[%emt 00:00:33]}
Qxf3+ {[%clk 00:15:02]} {[%emt 00:02:07]} 25. Rxf3 {[%clk 00:37:45]} {[%emt
00:00:11]} c4 {[%clk 00:13:09]} {[%emt 00:02:23]} 26. dxc4 {[%clk 00:33:42]}
{[%emt 00:04:33]} bxc4 {[%clk 00:12:55]} {[%emt 00:00:44]} 27. b4 {[%clk
00:31:04]} {[%emt 00:03:09]} Rd2 {[%clk 00:12:53]} {[%emt 00:00:32]} 28. Rc3
{[%clk 00:30:15]} {[%emt 00:01:18]} Bxe5 {[%clk 00:12:47]} {[%emt 00:00:37]} 29.
fxe5 {[%clk 00:30:35]} {[%emt 00:00:11]} Nd4 {[%clk 00:11:59]} {[%emt
00:01:17]} 30. a4 {[%clk 00:28:59]} {[%emt 00:02:06]} h6 {[%clk 00:09:43]}
{[%emt 00:02:46]} 31. b5 {[%clk 00:28:57]} {[%emt 00:00:31]} axb5 {[%clk
00:09:44]} {[%emt 00:00:29]} 32. axb5 {[%clk 00:29:16]} {[%emt 00:00:11]} Nxb5
{[%clk 00:09:52]} {[%emt 00:00:23]} 33. Rf3 {[%clk 00:28:46]} {[%emt 00:00:59]}
Rxc2 {[%clk 00:09:47]} {[%emt 00:00:34]} 34. Ba3 {[%clk 00:28:03]} {[%emt
00:01:15]} Ra8 {[%clk 00:09:10]} {[%emt 00:01:05]} 0-1